bitfinex-derivatives/quotes_BTCF0:USTF0_20250119
["timestamp","ask_amount","ask_price","bid_price","bid_amount"]
[1737324037856,0.3608,103610.0,103590.0,0.689436]
[1737324038054,0.3608,103610.0,103590.0,0.6411]
[1737324038454,0.409124,103620.0,103590.0,1.0019]
[1737324038658,0.3608,103610.0,103590.0,1.04526327]
[1737324038956,0.409127,103610.0,103590.0,0.6411]
[1737324039152,0.409127,103610.0,103590.0,1.0019]
[1737324039359,0.3608,103600.0,103590.0,0.6411]
[1737324039750,0.48426652,103630.0,103600.0,0.048331]
[1737324040151,0.409114,103640.0,103610.0,0.739926]
[1737324040563,0.409114,103640.0,103610.0,0.78329117]
[1737324040754,0.48571498,103650.0,103610.0,0.42249117]
[1737324040957,0.36224846,103650.0,103620.0,0.409123]
[1737324041154,0.3608,103630.0,103620.0,0.048323]
[1737324041354,0.3608,103640.0,103620.0,0.409123]
[1737324041758,0.3608,103640.0,103610.0,0.379126]
[1737324042360,0.3608,103640.0,103610.0,0.739926]
[1737324042751,0.3608,103640.0,103620.0,0.3608]
[1737324042946,0.3608,103640.0,103610.0,0.379126]
[1737324042947,0.409114,103640.0,103610.0,0.379126]
[1737324043155,0.53258052,103630.0,103610.0,0.6916]
[1737324043355,0.409118,103620.0,103590.0,1.050232]
[1737324043547,0.048325,103610.0,103590.0,0.9567]
[1737324043752,0.53259152,103610.0,103590.0,0.9567]
[1737324044257,0.3608,103620.0,103600.0,0.3608]
[1737324044447,0.409118,103620.0,103600.0,0.3608]
[1737324044653,0.409118,103620.0,103590.0,1.005031]
[1737324044853,0.409118,103620.0,103600.0,0.3608]
[1737324045156,0.53258152,103630.0,103600.0,0.409127]
[1737324045357,0.3608,103640.0,103610.0,0.409121]
[1737324045563,0.17322198,103650.0,103620.0,0.409117]
[1737324045760,0.48571498,103650.0,103620.0,0.409117]
[1737324045964,0.12491498,103650.0,103630.0,0.409112]
[1737324046260,0.3608,103640.0,103610.0,0.04832]
[1737324046466,0.17178052,103630.0,103600.0,0.3608]
[1737324046769,0.53258052,103630.0,103600.0,0.3608]
[1737324046956,0.48426652,103630.0,103600.0,0.409126]
[1737324047152,0.3608,103640.0,103610.0,0.3608]
[1737324047359,0.048324,103610.0,103580.0,0.01014869]
[1737324047561,0.3608,103590.0,103570.0,0.04834]
[1737324047867,0.3608,103600.0,103590.0,0.048331]
[1737324048371,0.3608,103600.0,103590.0,0.048328]
[1737324048559,0.3608,103600.0,103590.0,0.365728]
[1737324049360,0.3608,103610.0,103590.0,0.365728]
[1737324049561,0.3608,103610.0,103590.0,0.3174]
[1737324049562,0.3608,103600.0,103590.0,0.3174]
[1737324049863,0.3608,103600.0,103590.0,0.048332]
[1737324050270,0.3608,103600.0,103580.0,0.048336]
[1737324050573,0.3608,103590.0,103580.0,0.048336]
[1737324050765,0.3608,103590.0,103570.0,0.993141]
[1737324050969,0.3608,103580.0,103570.0,0.993141]
[1737324053466,0.3608,103580.0,103570.0,0.9448]
[1737324053773,0.3608,103580.0,103560.0,0.048344]
[1737324053974,0.3608,103570.0,103560.0,0.048344]
[1737324054271,0.3608,103590.0,103570.0,0.048341]
[1737324054471,0.3608,103580.0,103570.0,0.048341]
[1737324054668,0.3608,103600.0,103570.0,0.048341]
[1737324054858,0.3608,103590.0,103580.0,0.048333]
[1737324055061,0.048323,103610.0,103580.0,0.048333]
[1737324055062,0.3608,103600.0,103580.0,0.048333]
[1737324055266,0.3608,103590.0,103570.0,0.048341]
[1737324055472,0.3608,103580.0,103570.0,0.048341]
[1737324055668,0.3608,103580.0,103570.0,0.047341]
[1737324056074,0.3608,103590.0,103550.0,1.3239]
[1737324056373,0.3608,103580.0,103570.0,0.048341]
[1737324056867,0.3608,103580.0,103560.0,0.048345]
[1737324057071,0.3608,103570.0,103560.0,0.048345]
[1737324057278,0.409143,103570.0,103540.0,7.004e-05]
[1737324057473,0.7216,103550.0,103540.0,7.004e-05]
[1737324058267,0.048343,103570.0,103540.0,7.004e-05]
[1737324058268,0.3608,103570.0,103540.0,7.004e-05]
[1737324058469,0.3608,103560.0,103550.0,0.04835]
[1737324058695,0.7216,103560.0,103550.0,0.04835]
[1737324059071,0.3608,103570.0,103560.0,0.048344]
[1737324059969,0.3608,103570.0,103550.0,0.04835]
[1737324060168,0.3608,103560.0,103550.0,0.04835]
[1737324060466,0.3608,103560.0,103540.0,0.40922104]
[1737324060672,0.3608,103550.0,103540.0,0.04842104]
[1737324060876,0.3273,103590.0,103560.0,0.048346]
[1737324060877,0.6881,103590.0,103560.0,0.048346]
[1737324061182,0.36224929,103600.0,103580.0,0.048337]
[1737324061377,0.3608,103590.0,103580.0,0.048337]
[1737324061969,0.48571581,103600.0,103580.0,0.048337]
[1737324062275,0.409132,103590.0,103560.0,0.048342]
[1737324062474,0.3608,103570.0,103560.0,0.048342]
[1737324063285,0.7216,103570.0,103550.0,0.048348]
[1737324063478,0.3608,103560.0,103550.0,0.048348]
[1737324063787,0.3608,103570.0,103560.0,0.048346]
[1737324064084,0.3608,103570.0,103550.0,0.048349]
[1737324064382,0.3608,103560.0,103550.0,0.048349]
[1737324064975,0.3608,103560.0,103540.0,7.004e-05]
[1737324065283,0.3608,103560.0,103540.0,0.04842504]
[1737324065682,0.3608,103560.0,103540.0,7.004e-05]
[1737324065877,0.3608,103550.0,103540.0,7.004e-05]
[1737324066278,0.3608,103550.0,103540.0,0.04842504]
[1737324066788,0.3608,103560.0,103540.0,0.04842504]
[1737324067487,0.3608,103550.0,103540.0,0.04842504]
[1737324067788,0.3608,103580.0,103540.0,0.36087004]
[1737324067977,0.3608,103590.0,103580.0,0.048337]
[1737324068176,0.36224929,103600.0,103590.0,0.048332]
[1737324068375,0.3608,103600.0,103590.0,0.048332]
[1737324068886,0.3608,103610.0,103590.0,0.048332]
[1737324069083,0.3608,103610.0,103600.0,0.048327]
[1737324069480,0.68806001,103620.0,103600.0,0.048327]
[1737324069681,0.6875,103620.0,103610.0,0.048323]
[1737324069886,0.3608,103620.0,103610.0,0.048323]
[1737324070383,0.3608,103620.0,103580.0,0.3608]
[1737324070384,0.01432395,103610.0,103580.0,0.3608]
[1737324070590,0.3608,103590.0,103570.0,0.048337]
[1737324070782,0.3608,103580.0,103570.0,0.048337]
[1737324070978,0.3608,103580.0,103550.0,0.97271464]
[1737324071184,0.7216,103560.0,103550.0,0.00081464]
[1737324071386,0.769946,103560.0,103550.0,0.00081464]
[1737324071690,0.7216,103560.0,103550.0,0.00081464]
[1737324071884,0.3608,103560.0,103550.0,0.04916564]
[1737324072186,0.3608,103570.0,103560.0,0.048346]
[1737324072380,0.3608,103580.0,103570.0,0.048341]
[1737324072581,0.7216,103580.0,103570.0,0.048341]
[1737324072979,0.3608,103580.0,103570.0,0.048341]
[1737324073181,0.3608,103580.0,103570.0,0.17180752]
[1737324073380,0.3608,103590.0,103580.0,0.048337]
[1737324073791,0.3608,103600.0,103590.0,0.048328]
[1737324074092,0.36224893,103610.0,103600.0,0.048327]
[1737324074289,0.3608,103630.0,103600.0,0.409127]
[1737324074496,0.37512644,103640.0,103620.0,0.048318]
[1737324074679,0.3608,103630.0,103620.0,0.048317]
[1737324074883,0.3608,103630.0,103600.0,0.048326]
[1737324075086,0.7216,103610.0,103590.0,0.412932]
[1737324075288,0.3608,103600.0,103580.0,0.6211]
[1737324075488,0.3608,103590.0,103580.0,0.362737]
[1737324075787,0.3608,103590.0,103570.0,0.00144811]
[1737324075788,0.048333,103590.0,103570.0,0.00144811]
[1737324075988,0.048333,103590.0,103570.0,0.04978911]
[1737324075989,0.3608,103580.0,103570.0,0.04978911]
[1737324076791,0.3608,103580.0,103570.0,0.00144811]
[1737324076986,0.409137,103580.0,103570.0,0.00144811]
[1737324077185,0.409137,103580.0,103550.0,0.04916364]
[1737324077186,0.53260352,103580.0,103550.0,0.04916364]
[1737324077492,0.3608,103570.0,103560.0,0.048346]
[1737324078086,0.3608,103580.0,103570.0,0.048341]
[1737324079296,0.3608,103580.0,103560.0,0.656846]
[1737324079495,0.3608,103570.0,103550.0,0.04916364]
[1737324079681,0.3608,103560.0,103550.0,0.04916364]
[1737324080183,0.3608,103570.0,103560.0,0.048343]
[1737324080791,0.3608,103570.0,103550.0,0.04916464]
[1737324080992,0.3608,103560.0,103550.0,0.04916464]
[1737324081382,0.3608,103570.0,103560.0,0.048346]
[1737324081886,0.3608,103580.0,103570.0,0.048341]
[1737324083089,0.3608,103590.0,103580.0,0.048337]
[1737324083300,0.37657992,103610.0,103600.0,0.048327]
[1737324083692,0.37657992,103610.0,103590.0,0.048331]
[1737324083994,0.3608,103600.0,103590.0,0.048331]
[1737324084200,0.3608,103600.0,103580.0,0.048336]
[1737324084502,0.3608,103590.0,103570.0,0.3299]
[1737324084702,0.3608,103580.0,103570.0,0.378241]
[1737324084888,0.3608,103580.0,103560.0,0.9935]
[1737324085094,0.3608,103570.0,103560.0,0.3646]
[1737324085292,0.3608,103570.0,103550.0,0.04916064]
[1737324085490,0.3608,103560.0,103550.0,0.00081464]
[1737324085697,0.409146,103560.0,103550.0,0.00081464]
[1737324086395,0.409146,103560.0,103550.0,0.04439218]
[1737324086602,0.409146,103560.0,103550.0,0.00081464]
[1737324086796,0.409146,103560.0,103540.0,0.00151867]
[1737324086797,0.53261252,103560.0,103540.0,0.00151867]
[1737324087104,0.3608,103550.0,103540.0,0.00151867]
[1737324087498,0.409151,103550.0,103540.0,0.00151867]
[1737324087693,0.53261752,103550.0,103540.0,0.00151867]
[1737324087901,0.048359,103540.0,103520.0,0.28]
[1737324088097,0.89342652,103530.0,103520.0,0.32358233]
[1737324088497,0.89342652,103530.0,103520.0,0.28]
[1737324089011,0.72167424,103530.0,103520.0,0.28]
[1737324089204,7.424e-05,103530.0,103520.0,0.28]
[1737324089510,0.36087424,103530.0,103520.0,0.37193695]
[1737324089703,0.36087424,103530.0,103520.0,0.32357195]
[1737324090093,7.424e-05,103530.0,103520.0,0.37193695]
[1737324090701,7.424e-05,103530.0,103520.0,0.73273695]
[1737324090906,7.424e-05,103530.0,103520.0,0.37193695]
[1737324091907,7.424e-05,103530.0,103520.0,0.67613695]
[1737324092604,0.3608,103570.0,103520.0,1.33691656]
[1737324092805,0.3608,103560.0,103550.0,0.048349]
[1737324093005,0.3608,103560.0,103540.0,0.048354]
[1737324093206,0.3608,103560.0,103540.0,0.09190213]
[1737324093707,0.3608,103550.0,103540.0,0.09190213]
[1737324093905,0.3608,103550.0,103540.0,0.04354813]
[1737324094110,0.53261752,103550.0,103540.0,0.04354813]
[1737324094305,1.14861752,103550.0,103520.0,0.28]
[1737324094517,0.3608,103530.0,103520.0,0.37192463]
[1737324095204,0.3608,103530.0,103520.0,0.28]
[1737324095405,0.048369,103520.0,103500.0,0.1]
[1737324095610,0.7216,103510.0,103500.0,0.1]
[1737324096106,0.048369,103520.0,103500.0,0.148374]
[1737324096107,0.3608,103520.0,103500.0,0.148374]
[1737324096299,0.3608,103510.0,103500.0,0.148374]
[1737324096715,0.3608,103510.0,103500.0,0.1]
[1737324096903,0.3608,103510.0,103500.0,0.148374]
[1737324097211,0.3608,103520.0,103500.0,0.1]
[1737324097414,0.3608,103530.0,103510.0,0.048369]
[1737324097608,0.3608,103520.0,103510.0,0.048369]
[1737324097803,0.3608,103520.0,103500.0,0.1]
[1737324097998,0.3608,103520.0,103500.0,0.148373]
[1737324098207,0.3608,103510.0,103500.0,0.148373]
[1737324098802,0.3608,103510.0,103500.0,0.1]
[1737324099908,0.3608,103510.0,103500.0,0.148374]
[1737324100104,0.3608,103510.0,103500.0,0.1]
[1737324100503,0.3608,103510.0,103500.0,0.148374]
[1737324100699,0.3608,103520.0,103500.0,0.148374]
[1737324101006,0.3608,103530.0,103500.0,0.58426652]
[1737324101202,0.36224962,103560.0,103540.0,0.048355]
[1737324101614,0.36224962,103560.0,103550.0,0.048351]
[1737324101615,0.00144962,103560.0,103550.0,0.048351]
[1737324102202,0.00144962,103560.0,103550.0,0.358651]
[1737324102409,0.01024904,103600.0,103590.0,0.048332]
[1737324102611,0.06360461,103610.0,103590.0,0.12346652]
[1737324102814,0.36224906,103630.0,103600.0,0.3608]
[1737324103113,0.82338954,103670.0,103630.0,0.048313]
[1737324103411,0.1102719,103660.0,103640.0,0.048309]
[1737324103615,0.4710719,103660.0,103640.0,0.048309]
[1737324104220,0.1102719,103660.0,103640.0,0.048309]
[1737324104529,0.1102719,103660.0,103650.0,0.048304]
[1737324104706,0.1102719,103660.0,103640.0,0.048308]
[1737324104911,0.48744257,103670.0,103640.0,0.048308]
[1737324105109,0.36397605,103670.0,103640.0,0.048308]
[1737324105310,0.75612001,103700.0,103660.0,0.409099]
[1737324105515,0.1,103700.0,103670.0,0.48426652]
[1737324105717,0.1,103700.0,103690.0,0.048285]
[1737324106019,0.4608,103700.0,103670.0,0.773692]
[1737324106217,0.4608,103700.0,103660.0,0.79364652]
[1737324106218,0.3608,103690.0,103660.0,0.30938]
[1737324106426,0.3608,103680.0,103650.0,0.409102]
[1737324106720,0.3608,103670.0,103650.0,0.048302]
[1737324106917,0.3608,103660.0,103650.0,0.048302]
[1737324107118,0.3608,103680.0,103650.0,0.048302]
[1737324107527,0.3608,103680.0,103670.0,0.048294]
[1737324107815,0.3608,103680.0,103650.0,0.3608]
[1737324108013,0.3608,103660.0,103630.0,0.409111]
[1737324108218,0.3608,103650.0,103630.0,0.048311]
[1737324108720,0.3608,103670.0,103640.0,0.12346652]
[1737324109025,0.3608,103660.0,103650.0,0.048302]
[1737324109322,0.3608,103670.0,103650.0,0.048302]
[1737324109520,0.3608,103660.0,103650.0,0.048302]
[1737324110121,0.3608,103660.0,103630.0,0.3608]
[1737324110320,0.3608,103650.0,103620.0,0.04843775]
[1737324110521,0.3608,103650.0,103630.0,0.048312]
[1737324110821,0.3608,103660.0,103630.0,0.048312]
[1737324111410,0.3608,103670.0,103640.0,0.12346652]
[1737324111623,0.3608,103680.0,103660.0,0.17176552]
[1737324111820,0.36224783,103690.0,103670.0,0.048294]
[1737324112031,0.3608,103680.0,103670.0,0.048294]
[1737324112327,0.36224783,103690.0,103680.0,0.04829]
[1737324112328,0.00144783,103690.0,103680.0,0.04829]
[1737324112521,0.1,103700.0,103690.0,0.048285]
[1737324113017,0.1,103700.0,103680.0,0.12346652]
[1737324113219,0.509079,103700.0,103670.0,0.3608]
[1737324113425,0.509079,103700.0,103660.0,0.53255952]
[1737324113728,0.409083,103690.0,103660.0,0.048294]
[1737324113934,0.3608,103680.0,103660.0,0.048294]
[1737324114419,0.3608,103690.0,103650.0,0.77506652]
[1737324114627,0.4608,103700.0,103670.0,0.048291]
[1737324114812,0.1,103700.0,103670.0,0.048291]
[1737324115018,0.4608,103700.0,103670.0,0.048291]
[1737324115322,0.4608,103700.0,103630.0,0.34681]
[1737324115523,0.01,103620.0,103560.0,0.3608]
[1737324115824,0.3608,103580.0,103560.0,0.04834]
[1737324116119,0.3608,103580.0,103540.0,0.69506652]
[1737324116120,0.409137,103570.0,103540.0,0.69506652]
[1737324116318,0.048314,103620.0,103520.0,0.12346652]
[1737324116319,0.7216,103550.0,103520.0,0.12346652]
[1737324116531,0.7216,103550.0,103510.0,0.01452]
[1737324116532,0.7216,103530.0,103510.0,0.17183152]
[1737324116719,0.3608,103520.0,103510.0,0.17183152]
[1737324116918,0.3608,103520.0,103510.0,0.12346652]
[1737324117516,0.3608,103520.0,103510.0,0.17183252]
[1737324117924,0.3608,103520.0,103500.0,0.50546652]
[1737324118122,0.3608,103510.0,103500.0,0.382]
[1737324118321,0.36091919,103510.0,103500.0,0.1]
[1737324118718,0.36091919,103510.0,103500.0,0.148371]
[1737324118913,0.3608,103540.0,103500.0,1.1216]
[1737324119118,0.3608,103540.0,103530.0,0.12346652]
[1737324119323,0.3608,103540.0,103520.0,0.04836]
[1737324119624,0.3608,103530.0,103520.0,0.04836]
[1737324120129,0.12346652,103570.0,103530.0,0.048354]
[1737324120130,0.3608,103560.0,103530.0,0.048354]
[1737324120321,0.3608,103550.0,103520.0,0.12346652]
[1737324120522,0.3608,103560.0,103530.0,0.3608]
[1737324120827,0.3608,103570.0,103550.0,0.3608]
[1737324121029,0.36224948,103590.0,103560.0,0.12346652]
[1737324121324,0.2904,103620.0,103580.0,0.48426652]
[1737324121521,0.04831,103630.0,103610.0,0.3608]
[1737324121724,0.62117732,103640.0,103590.0,0.3608]
[1737324121925,0.62117732,103640.0,103600.0,0.48426652]
[1737324121926,0.048315,103620.0,103600.0,0.48426652]
[1737324122123,0.048315,103620.0,103610.0,0.3608]
[1737324122430,0.2852,103650.0,103610.0,0.409118]
[1737324122729,0.048302,103650.0,103640.0,0.3608]
[1737324122918,0.48426652,103650.0,103610.0,0.3608]
[1737324123226,0.048311,103630.0,103610.0,0.3608]
[1737324123528,0.409114,103620.0,103590.0,0.409127]
[1737324123829,0.3608,103600.0,103560.0,8.767e-05]
[1737324124016,0.048355,103540.0,103500.0,0.509169]
[1737324124217,0.048355,103540.0,103500.0,0.1]
[1737324124218,0.48426652,103530.0,103500.0,0.1]
[1737324124515,0.409154,103540.0,103500.0,0.4608]
[1737324124720,0.409154,103540.0,103510.0,0.048364]
[1737324124920,0.409154,103540.0,103500.0,0.4608]
[1737324124921,0.36088823,103530.0,103500.0,0.4608]
[1737324125116,0.409169,103510.0,103500.0,0.1]
[1737324125424,0.3608,103520.0,103500.0,0.1]
[1737324125620,0.48435475,103530.0,103520.0,0.048365]
[1737324125817,8.823e-05,103530.0,103520.0,0.048365]
[1737324126143,8.823e-05,103530.0,103520.0,0.409165]
[1737324126427,8.823e-05,103530.0,103520.0,0.048365]
[1737324126630,0.12355475,103530.0,103500.0,0.4608]
[1737324126932,0.48435475,103530.0,103500.0,0.1]
[1737324127132,0.3608,103520.0,103500.0,0.1]
[1737324127727,8.823e-05,103530.0,103500.0,0.1]
[1737324128029,8.823e-05,103530.0,103520.0,0.3608]
[1737324128730,8.823e-05,103530.0,103510.0,0.48426652]
[1737324128924,8.823e-05,103530.0,103520.0,0.3608]
[1737324129419,0.3608,103560.0,103520.0,0.3608]
[1737324129823,0.3608,103560.0,103510.0,0.48426652]
[1737324130026,0.3608,103560.0,103530.0,0.3608]
[1737324130231,0.3608,103540.0,103510.0,0.3608]
[1737324130429,0.48426652,103550.0,103510.0,0.3608]
[1737324130430,0.3608,103550.0,103510.0,0.3608]
[1737324130730,0.3608,103560.0,103530.0,0.3608]
[1737324131119,0.3608,103560.0,103540.0,0.3608]
[1737324131326,0.3608,103570.0,103540.0,0.3608]
[1737324131327,0.3608,103580.0,103550.0,0.3608]
[1737324131526,0.77046652,103590.0,103540.0,0.48426652]
[1737324131527,0.3608,103560.0,103540.0,0.12346652]
[1737324131832,0.3608,103550.0,103520.0,0.48426652]
[1737324132025,0.3608,103570.0,103540.0,0.3608]
[1737324132427,0.48426652,103570.0,103520.0,0.3608]
[1737324132629,0.3608,103550.0,103520.0,0.3608]
[1737324132831,0.3608,103550.0,103510.0,0.48426652]
[1737324133128,0.3608,103560.0,103530.0,0.48426652]
[1737324133331,0.3608,103570.0,103530.0,0.48426652]
[1737324133531,0.3608,103560.0,103530.0,0.3608]
[1737324133926,0.3608,103550.0,103530.0,0.3608]
[1737324134226,0.48426652,103570.0,103530.0,0.3608]
[1737324134432,0.3608,103560.0,103530.0,0.3608]
[1737324134629,0.3608,103550.0,103530.0,0.3608]
[1737324134828,0.48426652,103550.0,103530.0,0.3608]
[1737324135029,0.48426652,103550.0,103500.0,0.4608]
[1737324135229,0.3608,103550.0,103510.0,0.48426652]
[1737324135533,0.3608,103550.0,103530.0,0.3608]
[1737324135926,0.3608,103560.0,103530.0,0.48426652]
[1737324136127,0.3608,103580.0,103550.0,0.3608]
[1737324136330,0.3608,103580.0,103560.0,0.3608]
[1737324136930,0.12346652,103590.0,103560.0,0.3608]
[1737324137132,0.3608,103600.0,103560.0,0.3608]
[1737324137530,0.96224911,103610.0,103570.0,0.48426652]
[1737324137728,0.72431562,103610.0,103570.0,0.3608]
[1737324137932,0.0014491,103610.0,103600.0,0.3608]
[1737324138534,0.02005332,103620.0,103600.0,0.3608]
[1737324138735,0.02005332,103620.0,103610.0,0.3608]
[1737324138933,0.1369108,103660.0,103610.0,0.48426652]
[1737324139240,0.1369108,103680.0,103650.0,0.3608]
[1737324139540,0.1369108,103680.0,103670.0,0.3608]
[1737324139733,0.1369108,103680.0,103670.0,0.7216]
[1737324140236,0.3608,103690.0,103660.0,0.43384697]
[1737324140536,0.3608,103690.0,103660.0,0.12346652]
[1737324140724,0.4608,103700.0,103660.0,0.48426652]
[1737324140924,0.3608,103680.0,103650.0,0.48426652]
[1737324141634,0.3608,103680.0,103670.0,0.12346652]
[1737324141835,0.3608,103690.0,103670.0,0.48426652]
[1737324142044,0.3608,103690.0,103670.0,0.12346652]
[1737324142239,0.3608,103690.0,103670.0,0.48426652]
[1737324143038,0.4608,103700.0,103670.0,0.48426652]
[1737324143435,0.4608,103700.0,103670.0,0.12346652]
[1737324143639,0.4608,103700.0,103670.0,0.48426652]
[1737324144136,0.1,103700.0,103690.0,0.48426652]
[1737324144542,0.1,103700.0,103690.0,0.12346652]
[1737324145425,0.1,103700.0,103670.0,0.3608]
[1737324145627,0.3608,103690.0,103670.0,0.48426652]
[1737324145835,0.3608,103680.0,103660.0,0.3608]
[1737324146037,0.3608,103690.0,103670.0,0.48426652]
[1737324146942,0.1,103700.0,103670.0,0.48426652]
[1737324147137,0.2369108,103700.0,103690.0,0.48426652]
[1737324147733,0.16461349,103710.0,103690.0,0.7216]
[1737324147934,0.16461349,103710.0,103700.0,0.48426652]
[1737324148136,0.3608,103740.0,103700.0,0.48426652]
[1737324148449,0.3608,103740.0,103720.0,0.3608]
[1737324148741,0.3608,103740.0,103700.0,0.75666652]
[1737324148935,0.3608,103740.0,103720.0,0.3608]
[1737324149332,0.0820612,103730.0,103720.0,0.3608]
[1737324149642,0.36224755,103760.0,103720.0,0.49874652]
[1737324149830,0.00144755,103760.0,103750.0,0.3608]
[1737324150538,0.36224755,103760.0,103710.0,0.48426652]
[1737324150736,0.36224755,103760.0,103700.0,0.6332]
[1737324150737,0.3608,103730.0,103700.0,0.2724]
[1737324151137,0.3608,103710.0,103700.0,0.2724]
[1737324151441,0.3608,103710.0,103690.0,0.3608]
[1737324151631,0.3608,103700.0,103670.0,0.28044674]
[1737324151930,0.3608,103680.0,103670.0,0.00144674]
[1737324152731,0.48426652,103680.0,103660.0,7.552e-05]
[1737324153034,0.3608,103670.0,103660.0,7.552e-05]
[1737324153341,0.3608,103680.0,103660.0,7.552e-05]
[1737324153938,0.3608,103690.0,103660.0,7.552e-05]
[1737324154243,0.3608,103730.0,103680.0,0.3608]
[1737324154437,0.3608,103730.0,103690.0,0.12346652]
[1737324154643,0.3608,103730.0,103710.0,0.12346652]
[1737324154843,0.00144725,103740.0,103710.0,0.48426652]
[1737324155035,0.3608,103750.0,103710.0,0.48426652]
[1737324155234,0.3608,103760.0,103730.0,0.12346652]
[1737324155435,0.3608,103740.0,103710.0,0.12346652]
[1737324155634,0.3608,103740.0,103700.0,0.48426652]
[1737324155837,0.3608,103750.0,103700.0,0.48426652]
[1737324156435,0.3608,103740.0,103700.0,0.48426652]
[1737324156832,0.3608,103750.0,103700.0,0.48426652]
[1737324157052,0.3608,103740.0,103700.0,0.48426652]
[1737324157641,0.3608,103730.0,103700.0,0.3608]
[1737324157841,0.3608,103710.0,103670.0,1.04916652]
[1737324158039,0.3608,103710.0,103680.0,0.3608]
[1737324158345,0.3608,103720.0,103680.0,0.3608]
[1737324158541,0.3608,103730.0,103680.0,0.3608]
[1737324159243,0.3608,103710.0,103680.0,0.3608]
[1737324159543,0.3608,103730.0,103680.0,0.3608]
[1737324159746,0.3608,103730.0,103700.0,0.3608]
[1737324160139,0.3608,103750.0,103710.0,0.48426652]
[1737324160437,0.3608,103770.0,103730.0,0.12346652]
[1737324160842,0.3608,103760.0,103730.0,0.12346652]
[1737324161146,0.3608,103770.0,103740.0,0.3608]
[1737324161346,0.3608,103770.0,103750.0,0.12346652]
[1737324161645,0.55334744,103780.0,103750.0,0.12346652]
[1737324162050,0.19254744,103780.0,103770.0,0.12346652]
[1737324162740,0.19254744,103780.0,103770.0,0.48426652]
[1737324162945,0.22005421,103790.0,103770.0,0.48426652]
[1737324163139,0.22005421,103790.0,103780.0,0.3608]
[1737324163341,0.46132001,103800.0,103770.0,0.48426652]
[1737324163549,0.4608,103800.0,103770.0,0.48426652]
[1737324163845,0.4608,103800.0,103780.0,0.12346652]
[1737324163846,0.3608,103790.0,103780.0,0.12346652]
[1737324164047,0.4608,103800.0,103780.0,0.12346652]
[1737324166246,0.1,103800.0,103780.0,0.48426652]
[1737324166647,0.3608,103830.0,103790.0,0.3608]
[1737324166841,0.3608,103820.0,103810.0,0.12346652]
[1737324167048,0.3608,103830.0,103790.0,0.12346652]
[1737324167347,0.3608,103830.0,103790.0,0.48426652]
[1737324168034,0.3608,103830.0,103810.0,0.12346652]
[1737324168940,0.58046376,103840.0,103810.0,0.48426652]
[1737324169144,0.58046376,103840.0,103830.0,0.12346652]
[1737324169344,0.5256281,103840.0,103830.0,0.12346652]
[1737324169744,0.8864281,103840.0,103810.0,0.12346652]
[1737324169946,0.3608,103820.0,103790.0,0.12356532]
[1737324170148,0.3608,103800.0,103790.0,0.12356532]
[1737324170345,0.3608,103810.0,103790.0,9.88e-05]
[1737324170855,0.10975418,103800.0,103790.0,9.88e-05]
[1737324171047,0.10984746,103800.0,103780.0,0.12346652]
[1737324171242,0.10984746,103800.0,103780.0,0.48426652]
[1737324171444,0.10984746,103800.0,103780.0,0.75346652]
[1737324171643,0.10984746,103800.0,103790.0,0.3608]
[1737324171842,9.328e-05,103800.0,103790.0,0.3608]
[1737324172252,0.10975418,103810.0,103790.0,0.3608]
[1737324172453,0.10975418,103810.0,103800.0,0.12346652]
[1737324173448,0.47055418,103810.0,103800.0,0.12346652]
[1737324173850,0.47055418,103810.0,103800.0,0.02414276]
[1737324174044,0.51878518,103810.0,103780.0,0.00012476]
[1737324174355,0.769839,103790.0,103780.0,0.02426983]
[1737324174653,0.769839,103790.0,103780.0,1e-08]
[1737324174843,0.048262,103740.0,103710.0,0.06974541]
[1737324175049,0.048276,103710.0,103700.0,0.0834145]
[1737324175354,0.409076,103710.0,103700.0,0.0834145]
[1737324175549,0.3608,103710.0,103700.0,0.0834145]
[1737324175749,0.3608,103710.0,103700.0,0.1316945]
[1737324175948,9.41e-05,103710.0,103700.0,0.0834145]
[1737324176156,0.3608941,103710.0,103690.0,0.048284]
[1737324176453,0.3608,103700.0,103690.0,0.048285]
[1737324177043,9.41e-05,103710.0,103700.0,0.048281]
[1737324177249,0.47055418,103730.0,103710.0,0.048276]
[1737324177450,0.47055418,103730.0,103720.0,0.048271]
[1737324177741,0.1648281,103760.0,103750.0,0.048257]
[1737324177945,0.3608,103770.0,103730.0,0.53252952]
[1737324178153,0.409054,103760.0,103730.0,0.409063]
[1737324178353,0.409062,103740.0,103720.0,0.00144587]
[1737324178554,0.048267,103730.0,103720.0,0.00144587]
[1737324178853,0.3608,103730.0,103680.0,0.00011849]
[1737324179153,0.12346652,103690.0,103670.0,0.00144665]
[1737324179353,0.3608,103700.0,103670.0,0.36224665]
[1737324179557,0.3608,103690.0,103670.0,0.00144665]
[1737324179748,0.048285,103690.0,103670.0,0.00144665]
[1737324180160,0.00012379,103680.0,103670.0,0.41053865]
[1737324180462,0.00012379,103680.0,103670.0,0.77513865]
[1737324180753,0.48426652,103720.0,103680.0,0.048288]
[1737324180754,0.048275,103720.0,103680.0,0.048288]
[1737324180959,0.12346652,103700.0,103670.0,0.36224665]
[1737324181260,0.048285,103690.0,103670.0,0.36224665]
[1737324181450,0.048285,103690.0,103660.0,0.409099]
[1737324181451,0.409085,103690.0,103660.0,0.409099]
[1737324181651,0.04829,103680.0,103660.0,0.3608]
[1737324181856,0.53255652,103680.0,103650.0,0.048303]
[1737324182057,0.48426652,103680.0,103650.0,0.048303]
[1737324182357,0.3608,103660.0,103640.0,0.048308]
[1737324182563,0.3608,103660.0,103640.0,0.42843637]
[1737324182749,0.3608,103660.0,103640.0,0.409108]
[1737324183153,0.3608,103660.0,103640.0,0.43931047]
[1737324183352,0.3608,103660.0,103640.0,0.39100247]
[1737324183555,0.3608,103650.0,103640.0,0.03020247]
[1737324183751,0.53256752,103660.0,103640.0,0.03020247]
[1737324183959,0.3608,103650.0,103640.0,0.03020247]
[1737324185061,0.3608,103660.0,103640.0,0.10267559]